fUST/lending_fUST_20240212
["ID","MTS","AMOUNT","RATE_DAILY","PERIOD"]
[313813292,1707735051375,-500.0,0.0002187,2]
[313813294,1707735051384,-1440.13,0.0002187,2]
[313813296,1707735051394,-2453.85,0.0002187,2]
[313813298,1707735051403,-533.97,0.0002187,2]
[313813300,1707735051413,-250.0,0.0002187,2]
[313813301,1707735051423,-258.40749437,0.00021871,2]
[313813303,1707735051434,-814.48,0.00021871,2]
[313813305,1707735051449,-500.0,0.00021871,2]
[313813307,1707735051459,-500.0,0.00021871,2]
[313813309,1707735051469,-500.0,0.00021871,2]
[313813311,1707735051479,-500.0,0.00021871,2]
[313813313,1707735051489,-675.37,0.00021871,2]
[313813315,1707735051498,-500.0,0.00021871,2]
[313813317,1707735051507,-759.19,0.00021871,2]
[313813319,1707735051518,-500.0,0.00021871,2]
[313813321,1707735051528,-512.16,0.00021871,2]
[313813323,1707735051538,-944.32,0.00021871,2]
[313813325,1707735051548,-500.0,0.00021871,2]
[313813327,1707735051558,-603.25,0.00021871,2]
[313813329,1707735051569,-5350.77,0.00021871,2]
[313813331,1707735051579,-646.94,0.00021871,2]
[313813333,1707735051589,-3234.08,0.00021871,2]
[313813335,1707735051599,-500.0,0.00021917,2]
[313813337,1707735051609,-448.71128351,0.00021917,2]
[313813339,1707735051619,-500.0,0.00021998,2]
[313813341,1707735051628,-512.16,0.00021998,2]
[313813343,1707735051638,-154.8915759,0.00022,2]
[313813345,1707735051647,-627.13120559,0.00022,2]
[313813346,1707735051656,-1000.0,0.00022,22]
[313813348,1707735051666,-1500.0,0.00022,2]
[313813350,1707735051676,-1611.45,0.00022,2]
[313813352,1707735051686,-247.38920084,0.00022,4]
[313813354,1707735051696,-820.79970176,0.00022,2]
[313813356,1707735051707,-580.0,0.00022,2]
[313813358,1707735051717,-151.0,0.00022044,2]
[313813360,1707735051726,-821.15351128,0.00022109,2]
[313813362,1707735051736,-158.12303353,0.00022109,2]
[313813364,1707735051746,-155.28046037,0.0002211,2]
[313813366,1707735051755,-2823.1509297,0.0002211,2]
[313813368,1707735051764,-11990.53251479,0.0002211,2]
[313813370,1707735051774,-1123.6478608,0.00022123,2]
[313813372,1707735051783,-500.0,0.00022142,2]
[313813374,1707735051792,-500.0,0.00022142,2]
[313813376,1707735051801,-4510.66,0.00022143,2]
[313813377,1707735051810,-6435.92,0.00022143,2]
[313813379,1707735051820,-500.0,0.00022143,2]
[313813381,1707735051830,-500.0,0.00022143,2]
[313813383,1707735051839,-2020.77,0.00022144,2]
[313813385,1707735051848,-500.0,0.00022144,2]
[313813387,1707735051858,-774.58,0.00022144,2]
[313813389,1707735051868,-5879.84,0.00022144,2]
[313813391,1707735051877,-500.0,0.00022144,2]
[313813393,1707735051886,-291.03,0.00022144,2]
[313813395,1707735051895,-1440.13,0.00022144,2]
[313813397,1707735051904,-2453.85,0.00022144,2]
[313813398,1707735051913,-533.97,0.00022144,2]
[313813399,1707735051922,-814.48,0.00022145,2]
[313813400,1707735051931,-500.0,0.00022145,2]
[313813401,1707735051941,-500.0,0.00022145,2]
[313813402,1707735051951,-388.7152164,0.00022145,2]
[313813403,1707735051960,-500.0,0.00022145,2]
[313813404,1707735051969,-675.37,0.00022145,2]
[313813405,1707735051978,-500.0,0.00022145,2]
[313813406,1707735051987,-759.19,0.00022145,2]
[313813407,1707735051996,-500.0,0.00022145,2]
[313813408,1707735052005,-512.16,0.00022145,2]
[313813409,1707735052014,-944.32,0.00022145,2]
[313813410,1707735052022,-500.0,0.00022145,2]
[313813411,1707735052031,-603.25,0.00022145,2]
[313813412,1707735052040,-5350.77,0.00022145,2]
[313813413,1707735052049,-646.94,0.00022145,2]
[313813414,1707735052057,-3234.08,0.00022145,2]
[313813415,1707735052066,-526.36906119,0.00022158,2]
[313813416,1707735052075,-512.16,0.00022158,2]
[313813417,1707735052084,-20106.8445511,0.00022159,2]
[313813418,1707735052093,-1589.1,0.00022378,10]
[313813419,1707735052102,-227.7317458,0.00022384,2]
[313813420,1707735052111,-565.95,0.00022416,2]
[313813421,1707735052120,-500.0,0.00022416,2]
[313813422,1707735052129,-4510.66,0.00022417,2]
[313813424,1707735052139,-6435.92,0.00022417,2]
[313813426,1707735052148,-500.0,0.00022417,2]
[313813428,1707735052158,-604.44,0.00022417,2]
[313813430,1707735052167,-2020.77,0.00022418,2]
[313813432,1707735052176,-500.0,0.00022418,2]
[313813434,1707735052186,-774.58,0.00022418,2]
[313813436,1707735052196,-5879.84,0.00022418,2]
[313813438,1707735052205,-500.0,0.00022418,2]
[313813440,1707735052215,-1440.13,0.00022418,2]
[313813442,1707735052224,-2453.85,0.00022418,2]
[313813444,1707735052233,-533.97,0.00022418,2]
[313813445,1707735052242,-814.48,0.00022419,2]
[313813447,1707735052252,-500.0,0.00022419,2]
[313813450,1707735052262,-500.0,0.00022419,2]
[313813452,1707735052271,-675.37,0.00022419,2]
[313813453,1707735052281,-500.0,0.00022419,2]
[313813455,1707735052290,-759.19,0.00022419,2]
[313813457,1707735052299,-500.0,0.00022419,2]
[313813459,1707735052309,-512.16,0.00022419,2]
[313813461,1707735052318,-944.32,0.00022419,2]
[313813463,1707735052328,-500.0,0.00022419,2]
[313813465,1707735052337,-603.25,0.00022419,2]
[313813468,1707735052347,-5350.77,0.00022419,2]
[313813469,1707735052356,-646.94,0.00022419,2]
[313813471,1707735052365,-3234.08,0.00022419,2]
[313813473,1707735052376,-169.3853147,0.000225,2]
[313813475,1707735052385,-254.12757757,0.000225,2]
[313813477,1707735052394,-188.792966,0.00022543,2]
[313813479,1707735052404,-834.209708,0.00022543,2]
[313813481,1707735052413,-613.160469,0.00022543,2]
[313813483,1707735052422,-151.0,0.00022559,2]
[313813486,1707735052433,-375.3672632,0.00022658,2]
[313813487,1707735052446,-295.3034159,0.00022658,2]
[313813489,1707735052455,-308.2393529,0.00022658,2]
[313813491,1707735052464,-153.0,0.00022658,2]
[313813493,1707735052474,-306.0,0.00022658,2]
[313813495,1707735052483,-200.1182246,0.00022658,2]
[313813497,1707735052492,-153.0,0.00022658,2]
[313813499,1707735052501,-200.1182246,0.00022658,2]
[313813502,1707735052511,-200.1182246,0.00022658,2]
[313813503,1707735052521,-153.0,0.00022658,2]
[313813505,1707735052530,-200.1182246,0.00022658,2]
[313813507,1707735052540,-153.0,0.00022658,2]
[313813509,1707735052549,-200.1182246,0.00022658,2]
[313813511,1707735052558,-200.1182246,0.00022658,2]
[313813513,1707735052567,-200.1182246,0.00022658,2]
[313813515,1707735052576,-500.0,0.0002269,2]
[313813517,1707735052585,-4510.66,0.00022691,2]
[313813519,1707735052594,-6435.92,0.00022691,2]
[313813521,1707735052603,-500.0,0.00022691,2]
[313813524,1707735052613,-2020.77,0.00022692,2]
[313813526,1707735052622,-500.0,0.00022692,2]
[313813527,1707735052632,-774.58,0.00022692,2]
[313813529,1707735052641,-5879.84,0.00022692,2]
[313813531,1707735052650,-500.0,0.00022692,2]
[313813533,1707735052659,-1440.13,0.00022692,2]
[313813535,1707735052668,-2453.85,0.00022692,2]
[313813537,1707735052677,-533.97,0.00022692,2]
[313813539,1707735052688,-814.48,0.00022693,2]
[313813542,1707735052698,-500.0,0.00022693,2]
[313813543,1707735052706,-500.0,0.00022693,2]
[313813545,1707735052716,-675.37,0.00022693,2]
[313813547,1707735052725,-500.0,0.00022693,2]
[313813549,1707735052734,-759.19,0.00022693,2]
[313813551,1707735052743,-500.0,0.00022693,2]
[313813553,1707735052752,-512.16,0.00022693,2]
[313813556,1707735052764,-512.16,0.00022693,2]
[313813558,1707735052773,-512.16,0.00022693,2]
[313813560,1707735052783,-512.16,0.00022693,2]
[313813562,1707735052792,-512.28121779,0.00022693,2]
[313813564,1707735052802,-944.32,0.00022693,2]
[313813566,1707735052811,-500.0,0.00022693,2]
[313813568,1707735052821,-603.25,0.00022693,2]
[313813570,1707735052830,-5350.77,0.00022693,2]
[313813572,1707735052839,-646.94,0.00022693,2]
[313813574,1707735052849,-3234.08,0.00022693,2]
[313813576,1707735052858,-200.1182246,0.00022767,2]
[313813578,1707735052868,-5000.0,0.0002277,2]
[313813580,1707735052877,-2176.96512925,0.000228,2]
[313813582,1707735052887,-834.209708,0.00022825,2]
[313813584,1707735052895,-613.160469,0.00022825,2]
[313813586,1707735052904,-444.79,0.00022964,2]
[313813588,1707735052913,-4510.66,0.00022965,2]
[313813590,1707735052923,-5020.91068742,0.00022965,2]
[313813598,1707735052995,-1415.00931258,0.00022965,2]
[313813600,1707735053004,-500.0,0.00022965,2]
[313813602,1707735053014,-2020.77,0.00022966,2]
[313813604,1707735053023,-500.0,0.00022966,2]
[313813606,1707735053032,-774.58,0.00022966,2]
[313813619,1707735053040,-3707.11068042,0.00022966,2]
[313813628,1707735053224,-1255.42064803,0.00022966,2]
[313819676,1707736238726,-228.98079369,0.00019172,2]
[313819678,1707736238735,-163.20812248,0.00019173,2]
[313819680,1707736238744,-166.666666,0.00019178,2]
[313819681,1707736238753,-166.666666,0.00019667,2]
[313819683,1707736238762,-166.666666,0.00020156,2]
[313819685,1707736238771,-209.05840094,0.00020318,2]
[313819687,1707736238780,-159.24384051,0.00020388,2]
[313819689,1707736238789,-478.4845278,0.00020388,2]
[313819691,1707736238803,-1332.88451943,0.00020388,2]
[313819693,1707736238815,-680.56789666,0.00020388,2]
[313819806,1707736241778,-584.53521934,0.00020388,2]
[313819808,1707736241787,-261.94560961,0.00020388,2]
[313819810,1707736241797,-821.15351128,0.00020389,2]
[313819812,1707736241810,-1351.44459683,0.00020391,3]
[313819814,1707736241822,-6122.00540317,0.00020391,3]
[313819816,1707736241831,-6227.87,0.00020391,3]
[313819818,1707736241840,-5189.9,0.00020391,3]
[313819820,1707736241850,-214.1569826,0.00020399,2]
[313819821,1707736241859,-300.0,0.000204,2]
[313819823,1707736241869,-2091.88767989,0.000204,2]
[313819825,1707736241878,-500.0,0.000204,2]
[313819827,1707736241888,-500.0,0.000204,2]
[313819830,1707736241898,-500.0,0.000204,2]
[313819832,1707736241907,-222.0747536,0.000204,2]
[313819834,1707736241916,-3754.29,0.000204,2]
[313819836,1707736241925,-2631.22,0.000204,2]
[313819838,1707736241934,-3344.23,0.000204,2]
[313819840,1707736241944,-500.0,0.000204,2]
[313819842,1707736241953,-2021.3,0.000204,2]
[313819843,1707736241962,-500.0,0.000204,2]
[313819845,1707736241971,-1271.35292894,0.000204,2]
[313819952,1707736244212,-2196.77707106,0.000204,2]
[313819954,1707736244223,-155.4966711,0.000204,2]
[313819956,1707736244236,-1266.0433289,0.000204,2]
[313819958,1707736244246,-500.0,0.000204,2]
[313819960,1707736244255,-509.05,0.000204,2]
[313819962,1707736244265,-900.08,0.000204,2]
[313819964,1707736244275,-500.0,0.000204,2]
[313819966,1707736244284,-1715.02,0.000204,2]
[313819968,1707736244293,-590.2,0.000204,2]
[313819970,1707736244303,-500.0,0.000204,2]
[313819972,1707736244313,-500.0,0.000204,2]
[313819974,1707736244323,-500.0,0.000204,2]
[313819976,1707736244331,-500.0,0.000204,2]
[313819978,1707736244341,-6556.92818932,0.00020401,2]
[313819981,1707736244357,-396.85223137,0.00020401,2]
[313820211,1707736246506,-1281.1498973,0.00020401,2]
[313820218,1707736246561,-4711.0,0.00020401,2]
[313821619,1707737431677,-163.20812248,0.00018899,2]
[313821621,1707737431686,-121.97584878,0.000189,2]
[313821764,1707737440237,-305.87419479,0.000189,2]
[313821766,1707737440246,-223.529861,0.00018941,2]
[313821768,1707737440256,-2320.0789092,0.0001901,2]
[313821770,1707737440265,-166.666666,0.00019178,2]
[313821772,1707737440275,-166.666666,0.00019627,2]
[313821774,1707737440283,-103.4998914,0.00020076,2]
[313821853,1707737441015,-63.1667746,0.00020076,2]
[313821855,1707737441025,-200.1182246,0.000201,2]
[313821857,1707737441035,-158.1637853,0.00020299,2]
[313821859,1707737441044,-4324.91,0.00020389,3]
[313821861,1707737441053,-3604.09,0.00020389,3]
[313821863,1707737441062,-5757.51352855,0.00020397,2]
[313822026,1707737442916,-399.31647145,0.00020397,2]
[313822028,1707737442926,-500.0,0.00020397,2]
[313822030,1707737442935,-500.0,0.00020397,2]
[313822032,1707737442944,-5542.07,0.00020397,2]
[313822034,1707737442953,-500.0,0.00020398,2]
[313822036,1707737442962,-597.63,0.00020398,2]
[313822038,1707737442972,-500.0,0.00020398,2]
[313822040,1707737442982,-500.0,0.00020398,2]
[313822042,1707737442991,-500.0,0.00020398,2]
[313822044,1707737443000,-500.0,0.00020398,2]
[313822046,1707737443009,-500.0,0.00020398,2]
[313822048,1707737443023,-500.0,0.00020398,2]
[313822050,1707737443063,-9384.64,0.00020398,2]
[313822052,1707737443073,-500.0,0.00020398,2]
[313822054,1707737443082,-500.0,0.00020398,2]
[313822056,1707737443091,-1152.39,0.00020398,2]
[313822059,1707737443101,-500.0,0.00020398,2]
[313822062,1707737443121,-953.43,0.00020398,2]
[313822064,1707737443131,-500.0,0.00020398,2]
[313822066,1707737443141,-2356.6,0.00020398,2]
[313822068,1707737443150,-500.0,0.00020398,2]
[313822070,1707737443160,-504.7,0.00020398,2]
[313822072,1707737443171,-2393.14,0.00020398,2]
[313822074,1707737443180,-500.0,0.00020398,2]
[313822076,1707737443190,-3815.71,0.00020398,2]
[313822078,1707737443200,-939.26,0.00020398,2]
[313822080,1707737443210,-500.0,0.00020398,2]
[313822082,1707737443220,-1455.01,0.00020398,2]
[313822084,1707737443229,-788.42,0.00020398,2]
[313822086,1707737443239,-1051.94,0.00020398,2]
[313822088,1707737443248,-500.0,0.00020398,2]
[313822090,1707737443258,-500.0,0.00020398,2]
[313822092,1707737443267,-676.98,0.00020398,2]
[313822094,1707737443278,-500.0,0.00020398,2]
[313822096,1707737443287,-1242.68,0.00020398,2]
[313822098,1707737443297,-565.95,0.00020399,2]
[313822100,1707737443306,-500.0,0.00020399,2]
[313822102,1707737443315,-500.0,0.00020399,2]
[313822104,1707737443325,-500.0,0.00020399,2]
[313822106,1707737443334,-500.0,0.00020399,2]
[313822109,1707737443343,-500.0,0.00020399,2]
[313822111,1707737443352,-1153.81,0.00020399,2]
[313822113,1707737443362,-500.0,0.00020399,2]
[313822115,1707737443371,-500.0,0.00020399,2]
[313822117,1707737443380,-500.0,0.00020399,2]
[313822119,1707737443390,-500.0,0.00020399,2]
[313822121,1707737443399,-500.0,0.00020399,2]
[313822123,1707737443409,-500.0,0.00020399,2]
[313822125,1707737443420,-500.0,0.00020399,2]
[313822127,1707737443429,-920.56,0.00020399,2]
[313822129,1707737443438,-500.0,0.00020399,2]
[313822131,1707737443447,-342.90716355,0.00020399,2]
[313822133,1707737443457,-6431.53,0.00020399,2]
[313822135,1707737443466,-500.0,0.00020399,2]
[313822137,1707737443477,-500.0,0.00020399,2]
[313822139,1707737443486,-500.0,0.00020399,2]
[313822141,1707737443496,-5099.89,0.00020399,2]
[313822143,1707737443506,-500.0,0.00020399,2]
[313822145,1707737443515,-185.07172042,0.00020399,2]
[313822147,1707737443524,-500.0,0.00020399,2]
[313822149,1707737443533,-3901.28,0.00020399,2]
[313822151,1707737443543,-594.78,0.00020399,2]
[313822153,1707737443554,-500.0,0.00020399,2]
[313822155,1707737443564,-500.0,0.00020399,2]
[313822157,1707737443573,-500.0,0.00020399,2]
[313822159,1707737443582,-181.61100377,0.00020399,2]
[313822161,1707737443592,-232.5449273,0.00020399,2]
[313822163,1707737443601,-1750.25250728,0.00020399,2]
[313822165,1707737443611,-155.050873,0.00020399,2]
[313822167,1707737443620,-235.24290887,0.00020399,2]
[313822169,1707737443629,-159.38167513,0.00020399,2]
[313822171,1707737443637,-681.20070136,0.00020399,2]
[313822173,1707737443647,-260.99042361,0.00020399,2]
[313822175,1707737443656,-500.0,0.000204,2]
[313822177,1707737443666,-500.0,0.000204,2]
[313822179,1707737443675,-402.00358314,0.00020401,2]
[313822181,1707737443684,-158.1637853,0.0002044,2]
[313822183,1707737443694,-6304.53229004,0.00020498,2]
[313822185,1707737443703,-166.666666,0.00020524,2]
[313822187,1707737443712,-405.76747741,0.00020534,2]
[313822189,1707737443723,-3899.92413442,0.00020534,2]
[313822191,1707737443732,-811.53495482,0.00020537,2]
[313822193,1707737443743,-158.1637853,0.00020581,2]
[313822195,1707737443752,-6156.83,0.00020671,2]
[313822197,1707737443762,-500.0,0.00020671,2]
[313822199,1707737443771,-500.0,0.00020671,2]
[313822201,1707737443780,-5542.07,0.00020671,2]
[313822203,1707737443789,-2209.86869252,0.00020672,5]
[313822205,1707737443798,-500.0,0.00020672,2]
[313822207,1707737443808,-597.63,0.00020672,2]
[313822209,1707737443816,-500.0,0.00020672,2]
[313822211,1707737443825,-500.0,0.00020672,2]
[313822213,1707737443835,-404.34782388,0.00020672,2]
[313822215,1707737443844,-500.0,0.00020672,2]
[313822217,1707737443853,-500.0,0.00020672,2]
[313822219,1707737443863,-500.0,0.00020672,2]
[313822221,1707737443872,-9384.64,0.00020672,2]
[313822223,1707737443881,-500.0,0.00020672,2]
[313822225,1707737443890,-500.0,0.00020672,2]
[313822227,1707737443899,-1152.39,0.00020672,2]
[313822229,1707737443908,-500.0,0.00020672,2]
[313822231,1707737443917,-953.43,0.00020672,2]
[313822233,1707737443926,-500.0,0.00020672,2]
[313822235,1707737443937,-2356.6,0.00020672,2]
[313822237,1707737443946,-500.0,0.00020672,2]
[313822239,1707737443956,-504.7,0.00020672,2]
[313822241,1707737443965,-2393.14,0.00020672,2]
[313822243,1707737443976,-500.0,0.00020672,2]
[313822245,1707737443985,-3815.71,0.00020672,2]
[313822248,1707737443994,-939.26,0.00020672,2]
[313822250,1707737444003,-500.0,0.00020672,2]
[313822252,1707737444013,-1455.01,0.00020672,2]
[313822254,1707737444022,-788.42,0.00020672,2]
[313822256,1707737444031,-1051.94,0.00020672,2]
[313822258,1707737444044,-500.0,0.00020672,2]
[313822260,1707737444053,-500.0,0.00020672,2]
[313822262,1707737444063,-676.98,0.00020672,2]
[313822264,1707737444072,-500.0,0.00020672,2]
[313822266,1707737444081,-1242.68,0.00020672,2]
[313822268,1707737444090,-317.98523973,0.00020673,2]
[313822270,1707737444100,-500.0,0.00020673,2]
[313822272,1707737444109,-500.0,0.00020673,2]
[313822274,1707737444118,-500.0,0.00020673,2]
[313822276,1707737444127,-500.0,0.00020673,2]
[313822278,1707737444136,-500.0,0.00020673,2]
[313822280,1707737444146,-1153.81,0.00020673,2]
[313822282,1707737444155,-500.0,0.00020673,2]
[313822284,1707737444165,-500.0,0.00020673,2]
[313822286,1707737444176,-500.0,0.00020673,2]
[313822288,1707737444185,-500.0,0.00020673,2]
[313822290,1707737444199,-500.0,0.00020673,2]
[313822292,1707737444208,-500.0,0.00020673,2]
[313822294,1707737444219,-500.0,0.00020673,2]
[313822296,1707737444228,-920.56,0.00020673,2]
[313822298,1707737444237,-500.0,0.00020673,2]
[313822300,1707737444247,-6431.53,0.00020673,2]
[313822302,1707737444257,-500.0,0.00020673,2]
[313822304,1707737444267,-500.0,0.00020673,2]
[313822306,1707737444276,-500.0,0.00020673,2]
[313822308,1707737444285,-5099.89,0.00020673,2]
[313822310,1707737444294,-500.0,0.00020673,2]
[313822312,1707737444303,-500.0,0.00020673,2]
[313822314,1707737444312,-3901.28,0.00020673,2]
[313822316,1707737444321,-594.78,0.00020673,2]
[313822318,1707737444330,-180.08129055,0.00020673,2]
[313822320,1707737444339,-500.0,0.00020673,2]
[313822322,1707737444349,-500.0,0.00020673,2]
[313822324,1707737444358,-250.0,0.00020721,2]
[313822326,1707737444367,-34565.64525206,0.00020722,2]
[313822328,1707737444376,-158.1637853,0.00020722,2]
[313822330,1707737444386,-208.83275062,0.00020822,2]
[313822332,1707737444395,-610.07055135,0.00020822,2]
[313822334,1707737444404,-500.0,0.00020822,2]
[313822336,1707737444413,-500.3389772,0.00020822,2]
[313822338,1707737444422,-500.0,0.00020822,2]
[313822340,1707737444431,-500.0,0.00020822,2]
[313822342,1707737444440,-500.0,0.00020822,2]
[313822344,1707737444450,-500.0,0.00020822,2]
[313822346,1707737444459,-174.29484345,0.00020822,2]
[313822348,1707737444469,-276.44080276,0.00020822,2]
[313822350,1707737444478,-500.0,0.00020822,2]
[313822352,1707737444487,-164.01145344,0.00020822,2]
[313822354,1707737444496,-500.0,0.00020822,2]
[313822356,1707737444505,-245.09912521,0.00020822,2]
[313822358,1707737444514,-500.0,0.00020822,2]
[313822360,1707737444524,-552.6770188,0.00020822,2]
[313822362,1707737444533,-500.0,0.00020822,2]
[313822364,1707737444542,-500.0,0.00020822,2]
[313822366,1707737444552,-500.0,0.00020822,2]
[313822368,1707737444561,-500.0,0.00020822,2]
[313822370,1707737444570,-500.0,0.00020822,2]
[313822372,1707737444579,-500.0,0.00020822,2]
[313822374,1707737444588,-500.0,0.00020822,2]
[313822376,1707737444597,-500.0,0.00020822,2]
[313822378,1707737444606,-500.0,0.00020822,2]
[313822380,1707737444615,-176.59968625,0.00020822,2]
[313822382,1707737444624,-500.0,0.00020822,2]
[313822384,1707737444633,-500.0,0.00020822,2]
[313822386,1707737444642,-500.0,0.00020822,2]
[313822388,1707737444652,-500.0,0.00020822,2]
[313822390,1707737444661,-500.0,0.00020822,2]
[313822392,1707737444670,-500.0,0.00020822,2]
[313822394,1707737444679,-500.0,0.00020822,2]
[313822396,1707737444688,-500.0,0.00020822,2]
[313822398,1707737444697,-500.0,0.00020822,2]
[313822400,1707737444706,-500.0,0.00020822,2]
[313822402,1707737444715,-500.0,0.00020822,2]
[313822404,1707737444725,-500.0,0.00020822,2]
[313822406,1707737444734,-500.0,0.00020822,2]
[313822408,1707737444743,-500.0,0.00020822,2]
[313822410,1707737444753,-500.0,0.00020822,2]
[313822412,1707737444763,-500.0,0.00020822,2]
[313822414,1707737444772,-500.0,0.00020822,2]
[313822416,1707737444781,-500.0,0.00020822,2]
[313822418,1707737444790,-500.0,0.00020822,2]
[313822420,1707737444799,-500.0,0.00020822,2]
[313822422,1707737444808,-500.0,0.00020822,2]
[313822424,1707737444817,-500.0,0.00020822,2]
[313822426,1707737444826,-500.0,0.00020822,2]
[313822437,1707737444965,-500.0,0.00020822,2]
[313822440,1707737444980,-500.0,0.00020822,2]
[313822442,1707737444989,-500.0,0.00020822,2]
[313822444,1707737444998,-500.0,0.00020822,2]
[313822446,1707737445007,-500.0,0.00020822,2]
[313822448,1707737445016,-500.0,0.00020822,2]
[313822450,1707737445025,-500.0,0.00020822,2]
[313822452,1707737445034,-500.0,0.00020822,2]
[313822454,1707737445043,-500.0,0.00020822,2]
[313822456,1707737445052,-500.0,0.00020822,2]
[313822458,1707737445061,-500.0,0.00020822,2]
[313822460,1707737445070,-500.0,0.00020822,2]
[313822462,1707737445079,-500.0,0.00020822,2]
[313822464,1707737445088,-500.0,0.00020822,2]
[313822466,1707737445097,-500.0,0.00020822,2]
[313822468,1707737445106,-511.97872764,0.00020822,2]
[313822470,1707737445118,-500.0,0.00020822,2]
[313822472,1707737445126,-500.0,0.00020822,2]
[313822474,1707737445135,-500.0,0.00020822,2]
[313822476,1707737445144,-500.0,0.00020822,2]
[313822478,1707737445152,-500.0,0.00020822,2]
[313822481,1707737445161,-500.0,0.00020822,2]
[313822484,1707737445173,-500.0,0.00020822,2]
[313822487,1707737445184,-500.0,0.00020822,2]
[313822490,1707737445193,-500.0,0.00020822,2]
[313822492,1707737445202,-500.0,0.00020822,2]
[313822494,1707737445211,-500.0,0.00020822,2]
[313822496,1707737445220,-500.0,0.00020822,2]
[313822498,1707737445230,-500.0,0.00020822,2]
[313822502,1707737445250,-500.0,0.00020822,2]
[313822504,1707737445262,-500.0,0.00020822,2]
[313822506,1707737445273,-500.0,0.00020822,2]
[313822508,1707737445282,-500.0,0.00020822,2]
[313822510,1707737445292,-500.0,0.00020822,2]
[313822512,1707737445302,-500.0,0.00020822,2]
[313822514,1707737445311,-500.0,0.00020822,2]
[313822516,1707737445321,-500.0,0.00020822,2]
[313822521,1707737445330,-500.0,0.00020822,2]
[313822523,1707737445340,-500.0,0.00020822,2]
[313822527,1707737445349,-500.0,0.00020822,2]
[313822531,1707737445359,-500.0,0.00020822,2]
[313822535,1707737445368,-500.0,0.00020822,2]
[313822539,1707737445378,-500.0,0.00020822,2]
[313822541,1707737445387,-500.0,0.00020822,2]
[313822545,1707737445397,-187.95184702,0.00020822,2]
[313822549,1707737445406,-500.0,0.00020822,2]
[313822552,1707737445416,-500.0,0.00020822,2]
[313822555,1707737445425,-500.0,0.00020822,2]
[313822557,1707737445435,-500.0,0.00020822,2]
[313822559,1707737445444,-500.0,0.00020822,2]
[313822561,1707737445454,-500.0,0.00020822,2]
[313822563,1707737445463,-200.0,0.00020822,2]
[313822565,1707737445473,-500.0,0.00020822,2]
[313822569,1707737445482,-500.0,0.00020822,2]
[313822572,1707737445492,-500.0,0.00020822,2]
[313822575,1707737445502,-500.0,0.00020822,2]
[313822578,1707737445511,-500.0,0.00020822,2]
[313822581,1707737445520,-500.0,0.00020822,2]
[313822584,1707737445529,-500.0,0.00020822,2]
[313822587,1707737445539,-500.0,0.00020822,2]
[313822590,1707737445548,-500.0,0.00020822,2]
[313822593,1707737445557,-500.0,0.00020822,2]
[313822596,1707737445567,-418.15076056,0.00020822,2]
[313822599,1707737445576,-500.0,0.00020941,2]
[313822601,1707737445586,-6156.83,0.00020945,2]
[313822603,1707737445596,-500.0,0.00020945,2]
[313822604,1707737445605,-500.0,0.00020945,2]
[313822606,1707737445614,-5542.07,0.00020945,2]